[Event "Titled Tuesday Blitz June 28 Early 2022"]
[White "Ozturk, Efe Hakan"]
[Black "Livaic, Leon"]
[WhiteFideId "34550216"]
[BlackFideId "14531534"]
[WhiteElo "1924"]
[BlackElo "2540"]
[Result "1/2-1/2"]
[Round "03"]
[TimeControl "180+1"]
[Date "2022.06.28"]
[WhiteClock "0:00:08"]
[BlackClock "0:00:54"]

1. Nf3 {[%clk 0:03:00]}  Nf6 {[%clk 0:02:59]} 2. c4 {[%clk 0:03:01]}  b6 {[%clk 0:03:00]} 3. g3 {[%clk 0:03:01]}  Bb7 {[%clk 0:03:00]} 4. Bg2 {[%clk 0:03:01]}  c5 {[%clk 0:03:01]} 5. O-O {[%clk 0:03:01]}  g6 {[%clk 0:03:01]} 6. Nc3 {[%clk 0:02:58]}  Bg7 {[%clk 0:03:01]} 7. b3 {[%clk 0:02:57]}  O-O {[%clk 0:03:01]} 8. Bb2 {[%clk 0:02:57]}  d5 {[%clk 0:03:02]} 9. cxd5 {[%clk 0:02:57]}  Nxd5 {[%clk 0:03:02]} 10. Qc1 {[%clk 0:02:53]}  Nc6 {[%clk 0:03:03]} 11. Nxd5 {[%clk 0:02:52]}  Qxd5 {[%clk 0:03:04]} 12. Bxg7 {[%clk 0:02:52]}  Kxg7 {[%clk 0:03:04]} 13. Qb2+ {[%clk 0:02:45]}  f6 {[%clk 0:03:04]} 14. Rfd1 {[%clk 0:02:26]}  e5 {[%clk 0:03:04]} 15. e3 {[%clk 0:02:15]}  e4 {[%clk 0:02:17]} 16. Ne1 {[%clk 0:02:09]}  Qe5 {[%clk 0:02:17]} 17. d4 {[%clk 0:01:14]}  exd3 {[%clk 0:01:52]} 18. Qxe5 {[%clk 0:01:04]}  fxe5 {[%clk 0:01:53]} 19. Nxd3 {[%clk 0:01:02]}  Rf7 {[%clk 0:01:52]} 20. Bxc6 {[%clk 0:01:00]}  Bxc6 {[%clk 0:01:50]} 21. Nxe5 {[%clk 0:01:01]}  Rc7 {[%clk 0:01:49]} 22. Nxc6 {[%clk 0:00:59]}  Rxc6 {[%clk 0:01:50]} 23. Rd7+ {[%clk 0:01:00]}  Kh6 {[%clk 0:01:50]} 24. Rad1 {[%clk 0:01:00]}  c4 {[%clk 0:01:49]} 25. bxc4 {[%clk 0:00:44]}  Rxc4 {[%clk 0:01:50]} 26. R1d4 {[%clk 0:00:43]}  Rxd4 {[%clk 0:01:47]} 27. exd4 {[%clk 0:00:44]}  g5 {[%clk 0:01:44]} 28. d5 {[%clk 0:00:39]}  Kg6 {[%clk 0:01:44]} 29. Kg2 {[%clk 0:00:37]}  h5 {[%clk 0:01:44]} 30. h3 {[%clk 0:00:35]}  Kf5 {[%clk 0:01:44]} 31. Rh7 {[%clk 0:00:11]}  Kg6 {[%clk 0:01:43]} 32. Rb7 {[%clk 0:00:11]}  Kf5 {[%clk 0:01:41]} 33. d6 {[%clk 0:00:11]}  Ke6 {[%clk 0:01:31]} 34. d7 {[%clk 0:00:12]}  Ke7 {[%clk 0:01:32]} 35. f4 {[%clk 0:00:09]}  gxf4 {[%clk 0:01:31]} 36. gxf4 {[%clk 0:00:10]}  h4 {[%clk 0:01:11]} 37. Kf3 {[%clk 0:00:10]}  Kd6 {[%clk 0:01:06]} 38. Rxa7 {[%clk 0:00:09]}  Rg8 {[%clk 0:01:02]} 39. Ra6 {[%clk 0:00:08]}  Kc7 {[%clk 0:00:59]} 40. Ra7+ {[%clk 0:00:08]}  Kd6 {[%clk 0:00:58]} 41. Ra6 {[%clk 0:00:08]}  Rg3+ {[%clk 0:00:55]} 42. Kf2 {[%clk 0:00:07]}  Kxd7 {[%clk 0:00:56]} 43. Rxb6 {[%clk 0:00:06]}  Rxh3 {[%clk 0:00:56]} 44. Kg2 {[%clk 0:00:04]}  Ra3 {[%clk 0:00:56]} 45. Rh6 {[%clk 0:00:03]}  Rxa2+ {[%clk 0:00:56]} 46. Kh3 {[%clk 0:00:04]}  Ra1 {[%clk 0:00:56]} 47. Kxh4 {[%clk 0:00:04]}  Ke7 {[%clk 0:00:55]} 48. Kg5 {[%clk 0:00:05]}  Kf7 {[%clk 0:00:55]} 49. Kf5 {[%clk 0:00:05]}  Ra5+ {[%clk 0:00:54]} 50. Kg4 {[%clk 0:00:05]}  Ra1 {[%clk 0:00:54]} 51. Rb6 {[%clk 0:00:05]}  Rg1+ {[%clk 0:00:54]} 52. Kf5 {[%clk 0:00:05]}  Ra1 {[%clk 0:00:53]} 53. Rb7+ {[%clk 0:00:06]}  Kf8 {[%clk 0:00:53]} 54. Kf6 {[%clk 0:00:06]}  Ra6+ {[%clk 0:00:53]} 55. Kg5 {[%clk 0:00:06]}  Rc6 {[%clk 0:00:53]} 56. f5 {[%clk 0:00:06]}  Ra6 {[%clk 0:00:54]} 57. Rc7 {[%clk 0:00:06]}  Rb6 {[%clk 0:00:53]} 58. Ra7 {[%clk 0:00:06]}  Rc6 {[%clk 0:00:54]} 59. Rb7 {[%clk 0:00:07]}  Ra6 {[%clk 0:00:54]} 60. f6 {[%clk 0:00:07]}  Ra1 {[%clk 0:00:53]} 61. Kf5 {[%clk 0:00:07]}  Rf1+ {[%clk 0:00:54]} 62. Ke6 {[%clk 0:00:07]}  Re1+ {[%clk 0:00:54]} 63. Kf5 {[%clk 0:00:08]}  Rf1+ {[%clk 0:00:54]} 64. Kg6 {[%clk 0:00:08]}  Rg1+ {[%clk 0:00:54]} 1/2-1/2


[Site "https://www.chess.com"]

[Event "Titled Tuesday Blitz June 28 Early 2022"]
[White "Perez Gormaz, Matias"]
[Black "Mogirzan, Matei-Valeriu"]
[WhiteFideId "3406342"]
[BlackFideId "1257455"]
[WhiteElo "2341"]
[BlackElo "1733"]
[Result "0-1"]
[Round "03"]
[TimeControl "180+1"]
[Date "2022.06.28"]
[WhiteClock "0:00:03"]
[BlackClock "0:00:05"]

1. a3 {[%clk 0:03:00]}  e5 {[%clk 0:02:54]} 2. b4 {[%clk 0:02:58]}  a5 {[%clk 0:02:50]} 3. Bb2 {[%clk 0:02:59]}  axb4 {[%clk 0:02:49]} 4. Bxe5 {[%clk 0:03:00]}  bxa3 {[%clk 0:02:47]} 5. Bb2 {[%clk 0:03:00]}  Nf6 {[%clk 0:02:29]} 6. Nxa3 {[%clk 0:03:00]}  d5 {[%clk 0:02:29]} 7. Nf3 {[%clk 0:02:58]}  c6 {[%clk 0:02:25]} 8. c4 {[%clk 0:02:55]}  Be7 {[%clk 0:02:01]} 9. e3 {[%clk 0:02:52]}  O-O {[%clk 0:02:00]} 10. Be2 {[%clk 0:02:48]}  Qb6 {[%clk 0:01:56]} 11. Qc2 {[%clk 0:02:40]}  Bf5 {[%clk 0:01:49]} 12. Qc1 {[%clk 0:02:22]}  Na6 {[%clk 0:01:37]} 13. O-O {[%clk 0:02:18]}  Nc5 {[%clk 0:01:28]} 14. Nd4 {[%clk 0:02:15]}  Bd3 {[%clk 0:01:18]} 15. Bc3 {[%clk 0:01:26]}  Bxe2 {[%clk 0:00:25]} 16. Nxe2 {[%clk 0:01:26]}  Nb3 {[%clk 0:00:19]} 17. Qb2 {[%clk 0:01:26]}  Bxa3 {[%clk 0:00:17]} 18. Rxa3 {[%clk 0:01:27]}  Rxa3 {[%clk 0:00:13]} 19. Qxa3 {[%clk 0:01:28]}  dxc4 {[%clk 0:00:14]} 20. Bxf6 {[%clk 0:01:28]}  gxf6 {[%clk 0:00:14]} 21. Qe7 {[%clk 0:01:28]}  c5 {[%clk 0:00:10]} 22. Rd1 {[%clk 0:01:11]}  Qd8 {[%clk 0:00:08]} 23. Qxb7 {[%clk 0:01:09]}  Nxd2 {[%clk 0:00:04]} 24. Nc3 {[%clk 0:01:09]}  Qd3 {[%clk 0:00:02]} 25. Nd5 {[%clk 0:00:11]}  Rd8 {[%clk 0:00:02]} 26. Nxf6+ {[%clk 0:00:07]}  Kg7 {[%clk 0:00:03]} 27. Nh5+ {[%clk 0:00:07]}  Kf8 {[%clk 0:00:03]} 28. Kh1 {[%clk 0:00:02]}  c3 {[%clk 0:00:02]} 29. h3 {[%clk 0:00:02]}  c2 {[%clk 0:00:03]} 30. Rc1 {[%clk 0:00:02]}  Nb3 {[%clk 0:00:03]} 31. Kh2 {[%clk 0:00:01]}  Nxc1 {[%clk 0:00:03]} 32. Qb2 {[%clk 0:00:02]}  Ne2 {[%clk 0:00:03]} 33. Qg7+ {[%clk 0:00:03]}  Ke8 {[%clk 0:00:03]} 34. Nf6+ {[%clk 0:00:03]}  Ke7 {[%clk 0:00:04]} 35. Ng4 {[%clk 0:00:02]}  Qd6+ {[%clk 0:00:04]} 36. f4 {[%clk 0:00:01]}  c1=Q {[%clk 0:00:05]} 37. Qg5+ {[%clk 0:00:01]}  f6 {[%clk 0:00:04]} 38. Qg7+ {[%clk 0:00:02]}  Ke8 {[%clk 0:00:05]} 39. Nxf6+ {[%clk 0:00:02]}  Qxf6 {[%clk 0:00:05]} 40. Qxf6 {[%clk 0:00:03]}  Qg1# {[%clk 0:00:05]} 0-1


[Site "https://www.chess.com"]

[Event "Titled Tuesday Blitz June 28 Early 2022"]
[White "Pert, Nicholas"]
[Black "Wartiovaara, Oliver"]
[WhiteFideId "403989"]
[BlackFideId "513024"]
[WhiteElo "2536"]
[BlackElo "1971"]
[Result "0-1"]
[Round "03"]
[TimeControl "180+1"]
[Date "2022.06.28"]
[WhiteClock "0:00:23"]
[BlackClock "0:00:22"]

1. Nf3 {[%clk 0:03:00]}  c5 {[%clk 0:02:53]} 2. g3 {[%clk 0:03:01]}  g6 {[%clk 0:02:46]} 3. Bg2 {[%clk 0:03:01]}  Bg7 {[%clk 0:02:47]} 4. c4 {[%clk 0:03:01]}  Nc6 {[%clk 0:02:47]} 5. Nc3 {[%clk 0:03:01]}  Nf6 {[%clk 0:02:45]} 6. a3 {[%clk 0:03:00]}  O-O {[%clk 0:02:44]} 7. Rb1 {[%clk 0:03:01]}  d5 {[%clk 0:02:41]} 8. cxd5 {[%clk 0:03:00]}  Nxd5 {[%clk 0:02:42]} 9. h4 {[%clk 0:02:58]}  Nxc3 {[%clk 0:02:21]} 10. bxc3 {[%clk 0:02:57]}  Qd6 {[%clk 0:02:10]} 11. Qc2 {[%clk 0:02:44]}  b6 {[%clk 0:01:57]} 12. d3 {[%clk 0:02:43]}  e5 {[%clk 0:01:51]} 13. h5 {[%clk 0:02:41]}  Bb7 {[%clk 0:01:35]} 14. Be3 {[%clk 0:02:36]}  Rad8 {[%clk 0:01:32]} 15. Kf1 {[%clk 0:02:25]}  Ne7 {[%clk 0:01:21]} 16. Kg1 {[%clk 0:02:16]}  Nd5 {[%clk 0:01:06]} 17. Bd2 {[%clk 0:02:15]}  f5 {[%clk 0:01:02]} 18. Ng5 {[%clk 0:02:12]}  h6 {[%clk 0:00:56]} 19. Nf3 {[%clk 0:01:40]}  g5 {[%clk 0:00:55]} 20. Nxg5 {[%clk 0:01:34]}  hxg5 {[%clk 0:00:56]} 21. Bxg5 {[%clk 0:01:35]}  Bh6 {[%clk 0:00:53]} 22. Bxd8 {[%clk 0:01:35]}  Rxd8 {[%clk 0:00:54]} 23. e4 {[%clk 0:01:32]}  Nf6 {[%clk 0:00:39]} 24. exf5 {[%clk 0:01:20]}  Bxg2 {[%clk 0:00:38]} 25. Kxg2 {[%clk 0:01:21]}  Qd5+ {[%clk 0:00:30]} 26. f3 {[%clk 0:01:05]}  Ng4 {[%clk 0:00:29]} 27. Qb3 {[%clk 0:00:52]}  Ne3+ {[%clk 0:00:29]} 28. Kh3 {[%clk 0:00:52]}  c4 {[%clk 0:00:27]} 29. Qb5 {[%clk 0:00:24]}  Qxf3 {[%clk 0:00:23]} 30. Qxe5 {[%clk 0:00:23]}  Qxh5# {[%clk 0:00:22]} 0-1


[Site "https://www.chess.com"]

[Event "Titled Tuesday Blitz June 28 Early 2022"]
[White "Pinheiro, Iung Alicio de O."]
[Black "Jovic, Stanoje"]
[WhiteFideId "2104350"]
[BlackFideId "905020"]
[WhiteElo "2283"]
[BlackElo "2286"]
[Result "1-0"]
[Round "03"]
[TimeControl "180+1"]
[Date "2022.06.28"]
[WhiteClock "0:00:14"]
[BlackClock "0:00:14"]

1. e4 {[%clk 0:03:00]}  c6 {[%clk 0:02:59]} 2. Nc3 {[%clk 0:02:59]}  d5 {[%clk 0:02:59]} 3. Nf3 {[%clk 0:02:59]}  dxe4 {[%clk 0:02:59]} 4. Nxe4 {[%clk 0:03:00]}  Nf6 {[%clk 0:03:00]} 5. Qe2 {[%clk 0:03:01]}  Bg4 {[%clk 0:02:57]} 6. h3 {[%clk 0:02:58]}  Bxf3 {[%clk 0:02:57]} 7. Nxf6+ {[%clk 0:02:56]}  gxf6 {[%clk 0:02:57]} 8. Qxf3 {[%clk 0:02:56]}  Qd5 {[%clk 0:02:56]} 9. Qb3 {[%clk 0:02:52]}  Qxb3 {[%clk 0:02:49]} 10. axb3 {[%clk 0:02:51]}  Rg8 {[%clk 0:02:45]} 11. g3 {[%clk 0:02:43]}  e5 {[%clk 0:02:42]} 12. Bd3 {[%clk 0:02:33]}  h6 {[%clk 0:02:32]} 13. Bf5 {[%clk 0:02:27]}  Bc5 {[%clk 0:02:28]} 14. d3 {[%clk 0:02:18]}  h5 {[%clk 0:02:25]} 15. h4 {[%clk 0:02:17]}  Nd7 {[%clk 0:02:21]} 16. c3 {[%clk 0:02:13]}  Nf8 {[%clk 0:02:15]} 17. b4 {[%clk 0:02:09]}  Bb6 {[%clk 0:02:14]} 18. Ke2 {[%clk 0:02:07]}  Ne6 {[%clk 0:02:13]} 19. Re1 {[%clk 0:01:43]}  Ke7 {[%clk 0:02:12]} 20. Bh6 {[%clk 0:01:37]}  Rad8 {[%clk 0:02:08]} 21. Be4 {[%clk 0:01:35]}  Nc7 {[%clk 0:01:58]} 22. Bf3 {[%clk 0:01:22]}  Nd5 {[%clk 0:01:52]} 23. Bd2 {[%clk 0:01:20]}  f5 {[%clk 0:01:35]} 24. Bxh5 {[%clk 0:01:03]}  Ke6 {[%clk 0:01:28]} 25. Bf3 {[%clk 0:01:01]}  Nf6 {[%clk 0:01:25]} 26. Bg5 {[%clk 0:00:59]}  Rd7 {[%clk 0:01:15]} 27. Bg2 {[%clk 0:00:58]}  Rgd8 {[%clk 0:01:13]} 28. Rad1 {[%clk 0:00:58]}  Re8 {[%clk 0:01:05]} 29. Bh3 {[%clk 0:00:58]}  Nd5 {[%clk 0:01:01]} 30. Kf1 {[%clk 0:00:53]}  f6 {[%clk 0:00:59]} 31. Bc1 {[%clk 0:00:51]}  Ne7 {[%clk 0:00:58]} 32. d4 {[%clk 0:00:49]}  Kf7 {[%clk 0:00:52]} 33. dxe5 {[%clk 0:00:47]}  Rxd1 {[%clk 0:00:50]} 34. e6+ {[%clk 0:00:45]}  Kg6 {[%clk 0:00:49]} 35. Rxd1 {[%clk 0:00:46]}  Nd5 {[%clk 0:00:48]} 36. Re1 {[%clk 0:00:44]}  f4 {[%clk 0:00:45]} 37. g4 {[%clk 0:00:31]}  Bc7 {[%clk 0:00:39]} 38. Bg2 {[%clk 0:00:31]}  Be5 {[%clk 0:00:37]} 39. Be4+ {[%clk 0:00:31]}  Kg7 {[%clk 0:00:36]} 40. Bf5 {[%clk 0:00:32]}  Nc7 {[%clk 0:00:33]} 41. Rd1 {[%clk 0:00:31]}  Nd5 {[%clk 0:00:30]} 42. h5 {[%clk 0:00:27]}  Kh6 {[%clk 0:00:27]} 43. Ke2 {[%clk 0:00:25]}  Kg5 {[%clk 0:00:27]} 44. Kf3 {[%clk 0:00:26]}  Nc7 {[%clk 0:00:21]} 45. Rd7 {[%clk 0:00:20]}  Nxe6 {[%clk 0:00:21]} 46. Rxb7 {[%clk 0:00:18]}  Nc7 {[%clk 0:00:20]} 47. h6 {[%clk 0:00:14]}  Kxh6 {[%clk 0:00:15]} 48. Bxf4+ {[%clk 0:00:14]}  Bxf4 {[%clk 0:00:15]} 49. Kxf4 {[%clk 0:00:15]}  Nd5+ {[%clk 0:00:16]} 50. Kg3 {[%clk 0:00:15]}  Re2 {[%clk 0:00:14]} 51. Rh7+ {[%clk 0:00:14]} 1-0


[Site "https://www.chess.com"]

[Event "Titled Tuesday Blitz June 28 Early 2022"]
[White "Popilski, Gil"]
[Black "Dardha, Daniel"]
[WhiteFideId "2809060"]
[BlackFideId "240990"]
[WhiteElo "2537"]
[BlackElo "2482"]
[Result "1-0"]
[Round "03"]
[TimeControl "180+1"]
[Date "2022.06.28"]
[WhiteClock "0:00:41"]
[BlackClock "0:01:40"]

1. e4 {[%clk 0:03:00]}  e5 {[%clk 0:02:58]} 2. Nf3 {[%clk 0:03:00]}  Nf6 {[%clk 0:02:58]} 3. Nxe5 {[%clk 0:02:56]}  Nxe4 {[%clk 0:02:59]} 4. Qe2 {[%clk 0:02:55]}  Qe7 {[%clk 0:02:59]} 5. Qxe4 {[%clk 0:02:55]}  d6 {[%clk 0:02:59]} 6. d4 {[%clk 0:02:55]}  dxe5 {[%clk 0:02:59]} 7. dxe5 {[%clk 0:02:54]}  Nc6 {[%clk 0:02:59]} 8. Nc3 {[%clk 0:02:53]}  Qxe5 {[%clk 0:02:59]} 9. Qxe5+ {[%clk 0:02:35]}  Nxe5 {[%clk 0:03:00]} 10. Bf4 {[%clk 0:02:32]}  Bd6 {[%clk 0:02:57]} 11. Bg3 {[%clk 0:02:32]}  h5 {[%clk 0:02:54]} 12. h3 {[%clk 0:02:29]}  h4 {[%clk 0:02:53]} 13. Bh2 {[%clk 0:02:29]}  Bf5 {[%clk 0:02:52]} 14. O-O-O {[%clk 0:02:27]}  O-O-O {[%clk 0:02:51]} 15. Nb5 {[%clk 0:02:26]}  Rhe8 {[%clk 0:02:50]} 16. Nxd6+ {[%clk 0:02:24]}  cxd6 {[%clk 0:02:47]} 17. Bb5 {[%clk 0:02:22]}  Re6 {[%clk 0:02:43]} 18. Rhe1 {[%clk 0:02:16]}  Kc7 {[%clk 0:02:30]} 19. Re3 {[%clk 0:02:14]}  f6 {[%clk 0:02:25]} 20. Rde1 {[%clk 0:02:00]}  a6 {[%clk 0:02:23]} 21. Ba4 {[%clk 0:01:59]}  g5 {[%clk 0:02:21]} 22. f4 {[%clk 0:01:55]}  gxf4 {[%clk 0:02:20]} 23. Bxf4 {[%clk 0:01:56]}  Re7 {[%clk 0:02:18]} 24. g4 {[%clk 0:01:48]}  hxg3 {[%clk 0:02:15]} 25. Bxg3 {[%clk 0:01:45]}  b5 {[%clk 0:02:15]} 26. Bb3 {[%clk 0:01:44]}  Rde8 {[%clk 0:02:15]} 27. Kd2 {[%clk 0:01:34]}  Bxh3 {[%clk 0:02:13]} 28. Bxe5 {[%clk 0:01:30]}  Rxe5 {[%clk 0:02:12]} 29. Rc3+ {[%clk 0:01:30]}  Kb6 {[%clk 0:02:09]} 30. Rxe5 {[%clk 0:01:29]}  fxe5 {[%clk 0:02:09]} 31. Rxh3 {[%clk 0:01:28]}  Rf8 {[%clk 0:02:09]} 32. Rd3 {[%clk 0:01:21]}  Kc5 {[%clk 0:02:08]} 33. Rc3+ {[%clk 0:01:21]}  Kb6 {[%clk 0:02:07]} 34. Bd5 {[%clk 0:01:20]}  Rf2+ {[%clk 0:02:07]} 35. Ke3 {[%clk 0:01:20]}  Rh2 {[%clk 0:01:59]} 36. Rc6+ {[%clk 0:01:19]}  Ka5 {[%clk 0:01:59]} 37. a3 {[%clk 0:01:11]}  b4 {[%clk 0:01:59]} 38. Bc4 {[%clk 0:01:08]}  bxa3 {[%clk 0:01:55]} 39. bxa3 {[%clk 0:01:06]}  Rh3+ {[%clk 0:01:53]} 40. Kd2 {[%clk 0:01:04]}  Rxa3 {[%clk 0:01:53]} 41. Rxa6+ {[%clk 0:01:03]}  Kb4 {[%clk 0:01:53]} 42. Rxa3 {[%clk 0:00:56]}  Kxa3 {[%clk 0:01:54]} 43. Kc3 {[%clk 0:00:56]}  Ka4 {[%clk 0:01:54]} 44. Be2 {[%clk 0:00:51]}  Ka5 {[%clk 0:01:54]} 45. Kc4 {[%clk 0:00:51]}  Kb6 {[%clk 0:01:52]} 46. Kd5 {[%clk 0:00:51]}  Kc7 {[%clk 0:01:53]} 47. Bb5 {[%clk 0:00:52]}  Kb6 {[%clk 0:01:52]} 48. Ba4 {[%clk 0:00:51]}  Ka5 {[%clk 0:01:47]} 49. Be8 {[%clk 0:00:51]}  Kb4 {[%clk 0:01:46]} 50. Bg6 {[%clk 0:00:50]}  Kc3 {[%clk 0:01:44]} 51. Bd3 {[%clk 0:00:47]}  Kd2 {[%clk 0:01:39]} 52. Kxd6 {[%clk 0:00:45]}  e4 {[%clk 0:01:38]} 53. Bxe4 {[%clk 0:00:45]}  Ke3 {[%clk 0:01:38]} 54. Ke5 {[%clk 0:00:44]}  Kd2 {[%clk 0:01:38]} 55. c4 {[%clk 0:00:44]}  Kc3 {[%clk 0:01:39]} 56. c5 {[%clk 0:00:44]}  Kb4 {[%clk 0:01:40]} 57. c6 {[%clk 0:00:44]}  Kb5 {[%clk 0:01:41]} 58. c7 {[%clk 0:00:44]}  Kb6 {[%clk 0:01:40]} 59. c8=Q {[%clk 0:00:43]}  Ka5 {[%clk 0:01:40]} 60. Qb7 {[%clk 0:00:42]}  Ka4 {[%clk 0:01:40]} 61. Bd5 {[%clk 0:00:42]}  Ka5 {[%clk 0:01:41]} 62. Bc4 {[%clk 0:00:41]}  Ka4 {[%clk 0:01:40]} 63. Kd4 {[%clk 0:00:41]} 1-0


[Site "https://www.chess.com"]

[Event "Titled Tuesday Blitz June 28 Early 2022"]
[White "Priyanka Nutakki"]
[Black "Warmerdam, Max"]
[WhiteFideId "25049615"]
[BlackFideId "1048104"]
[WhiteElo "1912"]
[BlackElo "2537"]
[Result "0-1"]
[Round "03"]
[TimeControl "180+1"]
[Date "2022.06.28"]
[WhiteClock "0:00:02"]
[BlackClock "0:00:05"]

1. d4 {[%clk 0:03:00]}  d5 {[%clk 0:02:59]} 2. Nf3 {[%clk 0:03:00]}  e6 {[%clk 0:02:59]} 3. Bf4 {[%clk 0:03:00]}  Nf6 {[%clk 0:02:58]} 4. e3 {[%clk 0:03:00]}  c5 {[%clk 0:02:58]} 5. Nbd2 {[%clk 0:02:58]}  Bd6 {[%clk 0:02:58]} 6. dxc5 {[%clk 0:02:57]}  Bxc5 {[%clk 0:02:57]} 7. Bd3 {[%clk 0:02:56]}  Bd6 {[%clk 0:02:49]} 8. Bg5 {[%clk 0:02:55]}  h6 {[%clk 0:02:43]} 9. Bh4 {[%clk 0:02:55]}  Be7 {[%clk 0:02:37]} 10. O-O {[%clk 0:02:53]}  O-O {[%clk 0:02:36]} 11. c4 {[%clk 0:02:52]}  dxc4 {[%clk 0:02:32]} 12. Nxc4 {[%clk 0:02:51]}  b6 {[%clk 0:02:29]} 13. Qe2 {[%clk 0:02:47]}  Bb7 {[%clk 0:02:28]} 14. Rfd1 {[%clk 0:02:47]}  Nbd7 {[%clk 0:02:26]} 15. Nfe5 {[%clk 0:02:44]}  Nxe5 {[%clk 0:01:23]} 16. Bh7+ {[%clk 0:02:39]}  Nxh7 {[%clk 0:01:23]} 17. Rxd8 {[%clk 0:02:38]}  Bxd8 {[%clk 0:01:20]} 18. Bxd8 {[%clk 0:02:33]}  Nxc4 {[%clk 0:01:05]} 19. Be7 {[%clk 0:02:27]}  Rfe8 {[%clk 0:01:03]} 20. Bb4 {[%clk 0:02:23]}  Rac8 {[%clk 0:01:01]} 21. Bc3 {[%clk 0:02:22]}  Nf6 {[%clk 0:00:57]} 22. Bxf6 {[%clk 0:02:11]}  gxf6 {[%clk 0:00:58]} 23. Qg4+ {[%clk 0:02:11]}  Kf8 {[%clk 0:00:58]} 24. Qh4 {[%clk 0:02:10]}  Kg7 {[%clk 0:00:57]} 25. Qg4+ {[%clk 0:02:10]}  Kf8 {[%clk 0:00:57]} 26. Qh4 {[%clk 0:02:10]}  Ke7 {[%clk 0:00:58]} 27. Qxh6 {[%clk 0:01:43]}  Rg8 {[%clk 0:00:56]} 28. g3 {[%clk 0:01:37]}  Ne5 {[%clk 0:00:35]} 29. Qf4 {[%clk 0:01:26]}  Nf3+ {[%clk 0:00:22]} 30. Kg2 {[%clk 0:01:25]}  Rc4 {[%clk 0:00:12]} 31. e4 {[%clk 0:01:12]}  Bxe4 {[%clk 0:00:10]} 32. Qe3 {[%clk 0:01:03]}  f5 {[%clk 0:00:07]} 33. Rd1 {[%clk 0:01:01]}  Rgc8 {[%clk 0:00:07]} 34. Qa3+ {[%clk 0:00:59]}  Kf6 {[%clk 0:00:07]} 35. Qe3 {[%clk 0:00:56]}  Rh8 {[%clk 0:00:06]} 36. h3 {[%clk 0:00:55]}  Ng5+ {[%clk 0:00:06]} 37. Kf1 {[%clk 0:00:54]}  Rxh3 {[%clk 0:00:06]} 38. Rd7 {[%clk 0:00:43]}  Rh1+ {[%clk 0:00:05]} 39. Ke2 {[%clk 0:00:43]}  Rc2+ {[%clk 0:00:04]} 40. Rd2 {[%clk 0:00:42]}  Bf3+ {[%clk 0:00:05]} 41. Kd3 {[%clk 0:00:42]}  Rxd2+ {[%clk 0:00:05]} 42. Kxd2 {[%clk 0:00:42]}  Rd1+ {[%clk 0:00:05]} 43. Kc2 {[%clk 0:00:42]}  Rd7 {[%clk 0:00:05]} 44. Qc3+ {[%clk 0:00:41]}  e5 {[%clk 0:00:05]} 45. Qc8 {[%clk 0:00:41]}  Be4+ {[%clk 0:00:05]} 46. Kc3 {[%clk 0:00:39]}  Re7 {[%clk 0:00:04]} 47. Qd8 {[%clk 0:00:36]}  Ne6 {[%clk 0:00:04]} 48. Qh8+ {[%clk 0:00:36]}  Kg6 {[%clk 0:00:04]} 49. Qxe5 {[%clk 0:00:34]}  Rc7+ {[%clk 0:00:04]} 50. Kd2 {[%clk 0:00:32]}  Rc2+ {[%clk 0:00:04]} 51. Ke3 {[%clk 0:00:32]}  Rc1 {[%clk 0:00:05]} 52. Qh8 {[%clk 0:00:30]}  Re1+ {[%clk 0:00:04]} 53. Kd2 {[%clk 0:00:30]}  Rh1 {[%clk 0:00:05]} 54. Qg8+ {[%clk 0:00:29]}  Kf6 {[%clk 0:00:06]} 55. Qb8 {[%clk 0:00:27]}  Rb1 {[%clk 0:00:06]} 56. Kc3 {[%clk 0:00:27]}  Rc1+ {[%clk 0:00:06]} 57. Kd2 {[%clk 0:00:27]}  Rc2+ {[%clk 0:00:06]} 58. Ke3 {[%clk 0:00:27]}  Rxb2 {[%clk 0:00:07]} 59. f4 {[%clk 0:00:27]}  Rxa2 {[%clk 0:00:06]} 60. Qe5+ {[%clk 0:00:25]}  Kg6 {[%clk 0:00:07]} 61. Qh8 {[%clk 0:00:25]}  Ra3+ {[%clk 0:00:07]} 62. Ke2 {[%clk 0:00:23]}  Rxg3 {[%clk 0:00:07]} 63. Qg8+ {[%clk 0:00:16]}  Ng7 {[%clk 0:00:07]} 64. Qb8 {[%clk 0:00:16]}  Rg4 {[%clk 0:00:07]} 65. Qxa7 {[%clk 0:00:15]}  b5 {[%clk 0:00:07]} 66. Qb6+ {[%clk 0:00:15]}  Ne6 {[%clk 0:00:07]} 67. Qxb5 {[%clk 0:00:16]}  Rxf4 {[%clk 0:00:08]} 68. Qb6 {[%clk 0:00:15]}  Rg4 {[%clk 0:00:08]} 69. Kf2 {[%clk 0:00:15]}  f4 {[%clk 0:00:08]} 70. Qd6 {[%clk 0:00:14]}  Rg2+ {[%clk 0:00:08]} 71. Kf1 {[%clk 0:00:14]}  Rg5 {[%clk 0:00:06]} 72. Kf2 {[%clk 0:00:12]}  Bf5 {[%clk 0:00:06]} 73. Qb8 {[%clk 0:00:11]}  Rh5 {[%clk 0:00:06]} 74. Qg8+ {[%clk 0:00:11]}  Kf6 {[%clk 0:00:06]} 75. Qb8 {[%clk 0:00:11]}  Be4 {[%clk 0:00:06]} 76. Kf1 {[%clk 0:00:11]}  Rh1+ {[%clk 0:00:06]} 77. Kf2 {[%clk 0:00:11]}  Rh2+ {[%clk 0:00:06]} 78. Kf1 {[%clk 0:00:12]}  Rh4 {[%clk 0:00:06]} 79. Qd6 {[%clk 0:00:11]}  Kf5 {[%clk 0:00:06]} 80. Qe7 {[%clk 0:00:10]}  f6 {[%clk 0:00:06]} 81. Qd7 {[%clk 0:00:09]}  Rh5 {[%clk 0:00:05]} 82. Qf7 {[%clk 0:00:08]}  Kg5 {[%clk 0:00:04]} 83. Qxe6 {[%clk 0:00:08]}  Bf5 {[%clk 0:00:04]} 84. Qe8 {[%clk 0:00:07]}  Kg4 {[%clk 0:00:04]} 85. Qg8+ {[%clk 0:00:06]}  Kf3 {[%clk 0:00:04]} 86. Qb3+ {[%clk 0:00:06]}  Kg4 {[%clk 0:00:04]} 87. Qd1+ {[%clk 0:00:06]}  f3 {[%clk 0:00:03]} 88. Qd4+ {[%clk 0:00:06]}  Kg3 {[%clk 0:00:02]} 89. Qf2+ {[%clk 0:00:06]}  Kf4 {[%clk 0:00:02]} 90. Qd4+ {[%clk 0:00:06]}  Kg5 {[%clk 0:00:02]} 91. Qe3+ {[%clk 0:00:05]}  Kg4 {[%clk 0:00:02]} 92. Qd4+ {[%clk 0:00:05]}  Kh3 {[%clk 0:00:02]} 93. Qxf6 {[%clk 0:00:05]}  Kg3 {[%clk 0:00:02]} 94. Qg7+ {[%clk 0:00:05]}  Bg4 {[%clk 0:00:02]} 95. Qe5+ {[%clk 0:00:05]}  Kh3 {[%clk 0:00:02]} 96. Qf4 {[%clk 0:00:05]}  Rf5 {[%clk 0:00:02]} 97. Qh6+ {[%clk 0:00:05]}  Kg3 {[%clk 0:00:03]} 98. Qd6+ {[%clk 0:00:04]}  Rf4 {[%clk 0:00:03]} 99. Qd2 {[%clk 0:00:03]}  Bh3+ {[%clk 0:00:03]} 100. Kg1 {[%clk 0:00:02]}  f2+ {[%clk 0:00:04]} 101. Qxf2+ {[%clk 0:00:02]}  Rxf2 {[%clk 0:00:04]} 102. Kh1 {[%clk 0:00:02]}  Rf1# {[%clk 0:00:05]} 0-1


[Site "https://www.chess.com"]